[Event "25th Abu Dhabi Open 2018"]
[Site "Abu Dhabi"]
[Date "2018.08.13"]
[Round "7"]
[White "Soham, Datar"]
[Black "Umbetov, Kazybek"]
[Result "1/2-1/2"]
[ECO "A04"]
[WhiteElo "2030"]
[BlackElo "2055"]
[Annotator "NA"]
[PlyCount "97"]
[EventDate "2018.08.05"]
[EventType "swiss"]
[EventCountry "UAE"]
[SourceTitle "playchess.com"]
[Source "ChessBase"]
[SourceQuality "1"]
[TimeControl "5400+30"]

1. Nf3 {[%emt 0:00:00]} f5 {[%emt 0:00:00]} 2. c4 {[%emt 0:00:00]} Nf6 {[%emt 0:00:00]} 3. g3 {[%emt 0:00:00]} g6 {[%emt 0:00:22]} 4. Bg2 {[%emt 0:00:08]} Bg7 {[%emt 0:00:03]} 5. Nc3 {[%emt 0:01:08]} O-O {[%emt 0:00:02]} 6. d3 {[%emt 0:00:25]} d6 {[%emt 0:00:19]} 7. Rb1 {[%emt 0:00:23]} c6 {[%emt 0:02:13]} 8. O-O {[%emt 0:03:18]} Qc7 {[%emt 0:01:13] A10: English Opening: Unusual Replies for Black} (8... a5 9. a3 e5 10. b4 axb4 11. axb4 Nbd7 12. Bb2 Qe7 13. Nd2 Bh6 14. e3 f4 15. exf4 exf4 16. Re1 Qf7 17. Nde4 Ne8 {1-0 (45) Hickl,J (2556)-Gaehler,M (2341) Switzerland 2017}) 9. b4 {[%emt 0:01:34]} a6 $146 {[%emt 0:05:03]} ({Predecessor:} 9... e5 10. Ne1 Be6 11. b5 f4 12. Qb3 Rf7 13. a4 Qd7 {½-½ (41) Thompson,R (1905)-Fathallah,J (1919) Treforest 2010}) 10. a4 {[%emt 0:01:26]} e5 {[%emt 0:01:33]} 11. Qb3 {[%emt 0:00:59]} h6 {[%emt 0:00:57]} 12. Ba3 {[%emt 0:05:25]} Be6 {[%emt 0:00:28]} 13. b5 {[%emt 0:04:18]} axb5 {[%emt 0:00:06]} 14. axb5 {[%emt 0:00:11]} Nbd7 {[%emt 0:01:55]} 15. Rfc1 {[%emt 0:08:22]} c5 {[%emt 0:04:38]} 16. b6 {[%emt 0:05:06]} Qb8 {[%emt 0:02:12]} 17. Nb5 {[%emt 0:19:52]} Ra6 {[%emt 0:09:07]} 18. d4 {[%emt 0:03:26]} Rxb6 {[%emt 0:02:19]} 19. dxc5 {[%emt 0:03:34]} dxc5 {[%emt 0:01:52]} 20. Ne1 {[%emt 0:02:26]} e4 {[%emt 0:01:30]} 21. Nc2 {[%emt 0:00:30]} Ng4 {[%emt 0:06:23]} 22. Ne3 {[%emt 0:01:04]} Nxe3 {[%emt 0:03:10]} 23. Qxe3 {[%emt 0:00:06]} Rc8 {[%emt 0:08:54]} 24. Kh1 {[%emt 0:01:53]} Kh7 {[%emt 0:08:18]} 25. f3 {[%emt 0:01:51]} exf3 {[%emt 0:00:52]} 26. exf3 {[%emt 0:00:39]} f4 {[%emt 0:00:49]} 27. Qf2 {[%emt 0:02:43]} fxg3 {[%emt 0:00:40]} 28. hxg3 {[%emt 0:00:07]} Ne5 {[%emt 0:00:20]} 29. Bf1 {[%emt 0:01:58]} Bf5 {[%emt 0:02:27]} 30. Rb3 {[%emt 0:00:55]} Rf6 {[%emt 0:05:33]} 31. Re1 {[%emt 0:09:34]} Re8 {[%emt 0:08:12]} 32. Rbe3 {[%emt 0:01:09]} b6 {[%emt 0:01:30]} 33. Qh2 {[%emt 0:06:08]} Rff8 $2 {[%emt 0:09:15]} (33... Bd7 $19 34. Bb2 Rxf3 35. Bxe5 Rxe3 36. Rxe3 Rxe5 37. Rxe5 Qxe5) 34. g4 $2 {[%emt 0:00:41]} (34. Bb2 $17 {only move.}) 34... Bd7 {[%emt 0:00:45]} 35. Bb2 {[%emt 0:01:03]} Nc6 $2 {[%emt 0:01:14]} ({Worse is} 35... Nxf3 36. Qxb8 Nxe1 37. Rxe8 $16) (35... Rxf3 $19 36. Bxe5 Bxe5 37. Rxe5 Rxe5 38. Qxe5 Rxf1+ 39. Kg2 Qxe5 40. Rxe5 Rd1) 36. Qd2 $2 {[%emt 0:03:51]} (36. Qxb8 $14 Nxb8 37. Re7) 36... Rxe3 {[%emt 0:01:32]} 37. Qxd7 {[%emt 0:02:44] [#]} (37. Rxe3 $17 {war einen Versuch wert.} Bxg4 38. Bxg7 Kxg7 39. fxg4 Rxf1+ 40. Kg2) 37... Ne5 $2 {[%emt 0:00:39]} (37... Re5 $1 $19 38. Nc7 (38. Bxe5 Nxe5) 38... Rxf3) 38. Qxg7+ $1 {[%emt 0:00:37]} Kxg7 {[%emt 0:00:02]} 39. Rxe3 {[%emt 0:00:00]} Re8 {[%emt 0:01:56]} 40. Rxe5 $2 {[%emt 0:02:03]} (40. f4 $11 {und Weiss muss sich keine Sorgen machen.}) 40... Rxe5 {[%emt 0:00:01]} 41. f4 {[%emt 0:00:04]} Qa8+ {[%emt 0:00:33]} 42. Bg2 {[%emt 0:00:29]} Qa4 {[%emt 0:01:03]} 43. Bxe5+ {[%emt 0:00:05]} Kh7 {[%emt 0:00:02]} 44. Nd6 {[%emt 0:01:03]} (44. Bd5 $17) 44... Qd1+ {[%emt 0:00:01]} 45. Kh2 {[%emt 0:00:07]} Qxg4 {[%emt 0:00:32]} 46. Ne8 {[%emt 0:00:29]} (46. Be4 {keeps fighting.}) 46... Qh4+ $2 {[%emt 0:00:37]} 47. Kg1 {[%emt 0:00:11]} Qe1+ {[%emt 0:00:59]} 48. Kh2 {[%emt 0:00:03]} Qh4+ $11 {[%emt 0:03:00]} ({Better is} 48... g5 $19 49. Be4+ Kg8 50. Nf6+ Kf8) 49. Kg1 $1 {[%emt 0:00:31]} 1/2-1/2

[Event "25th Abu Dhabi Open 2018"]
[Site "Abu Dhabi"]
[Date "2018.08.13"]
[Round "7"]
[White "Abucejo, Armel N"]
[Black "Rafee, Mohd Hayel"]
[Result "1-0"]
[ECO "A05"]
[WhiteElo "2020"]
[BlackElo "1878"]
[Annotator "NA RC"]
[PlyCount "93"]
[EventDate "2018.08.05"]
[EventType "swiss"]
[EventCountry "UAE"]
[SourceTitle "playchess.com"]
[Source "ChessBase"]
[SourceQuality "1"]
[TimeControl "5400+30"]

1. Nf3 {[%emt 0:00:59]} Nf6 {[%emt 0:00:21]} 2. c4 {[%emt 0:00:38]} e6 {[%emt 0:00:38]} 3. g3 {[%emt 0:00:10]} c5 {[%emt 0:01:29]} 4. Bg2 {[%emt 0:00:21]} Nc6 {[%emt 0:00:05]} 5. O-O {[%emt 0:00:12]} Be7 {[%emt 0:00:15]} 6. d4 {[%emt 0:00:19]} cxd4 {[%emt 0:00:06]} 7. Nxd4 {[%emt 0:00:10]} O-O {[%emt 0:01:03]} 8. Nc3 {[%emt 0:00:42]} Ne5 {[%emt 0:05:41]} 9. b3 {[%emt 0:01:19] A33: Symmetrical English: 2 Nf3 Nf6 3 d4 cxd4 4 Nxd4 e6 5 Nc3 Nc6} d6 {[%emt 0:00:36]} (9... a6 10. Bb2 d6 11. Qd2 Qc7 12. Rac1 Bd7 13. h3 Rac8 14. Rfd1 Rfd8 15. f4 Ng6 16. e3 Qb8 {½-½ (55) Timman,J (2565)-Smeets,J (2598) Amstelveen 2016}) 10. Bb2 {[%emt 0:01:58]} Rb8 {[%emt 0:00:14]} 11. Rc1 {[%emt 0:01:30]} a6 {[%emt 0:00:47]} 12. h3 $146 {[%emt 0:00:43]} ({Predecessor:} 12. e4 Bd7 13. Qe2 Qa5 14. a4 Rfe8 15. Rfd1 Nc6 16. Nf3 Rbd8 {1-0 (41) Ivanov,M (2465)-Hitzgerova,G (2174) Crailsheim 2000}) 12... Qc7 {[%emt 0:00:34]} 13. e4 {[%emt 0:02:14]} b6 {[%emt 0:01:31]} 14. Qe2 {[%emt 0:00:40]} Bb7 {[%emt 0:00:18]} 15. Rfd1 {[%emt 0:00:19]} Rbd8 {[%emt 0:08:26]} 16. f4 {[%emt 0:02:52]} Nc6 {[%emt 0:00:13]} 17. Nc2 {[%emt 0:00:46]} Qb8 {[%emt 0:19:57]} 18. g4 {[%emt 0:03:58]} Ne8 {[%emt 0:05:46]} 19. Ne3 {[%emt 0:03:30]} Nc7 {[%emt 0:10:17]} 20. Kh1 {[%emt 0:07:09]} Rd7 {[%emt 0:08:36]} 21. Qf2 {[%emt 0:07:17]} Rfd8 {[%emt 0:05:33]} 22. g5 {[%emt 0:06:51]} b5 {[%emt 0:05:20]} 23. cxb5 {[%emt 0:02:05]} Nxb5 {[%emt 0:00:57]} 24. Ng4 {[%emt 0:00:40]} Nxc3 {[%emt 0:08:48]} 25. Bxc3 {[%emt 0:00:11]} e5 {[%emt 0:00:12]} 26. Qh4 {[%emt 0:01:35]} Kh8 {[%emt 0:08:03]} 27. f5 {[%emt 0:05:41]} Bf8 {[%emt 0:05:24]} 28. g6 {[%emt 0:02:52]} fxg6 {[%emt 0:00:17]} 29. fxg6 {[%emt 0:00:16]} h6 {[%emt 0:00:24]} 30. Qh5 {[%emt 0:01:43]} Kg8 {[%emt 0:01:51]} 31. Rf1 {[%emt 0:06:16]} Re7 {[%emt 0:01:03]} 32. Bd2 {[%emt 0:00:56]} Rdd7 {[%emt 0:00:39]} 33. Bg5 {[%emt 0:02:47]} Re6 {[%emt 0:00:15]} 34. Rf2 {[%emt 0:14:30]} Re8 {[%emt 0:00:42]} (34... Qe8 $18 35. Rcf1 Be7) 35. Rf7 {[%emt 0:00:48]} Ree7 {[%emt 0:00:35]} 36. Bxe7 {[%emt 0:00:37]} Rxe7 {[%emt 0:00:12]} 37. Rcf1 {[%emt 0:00:14]} Rxf7 {[%emt 0:00:47]} 38. gxf7+ {[%emt 0:01:05]} (38. Rxf7 $142 Qd8 39. Rxb7) 38... Kh7 {[%emt 0:00:21]} 39. Qf5+ {[%emt 0:08:32]} Kh8 {[%emt 0:00:02]} 40. Qd7 {[%emt 0:00:38]} Ne7 {[%emt 0:00:53]} 41. Rc1 {[%emt 0:01:02]} Ng6 {[%emt 0:00:35]} 42. Rc7 {[%emt 0:01:14]} Ba8 {[%emt 0:00:31]} 43. Rc8 {[%emt 0:01:31]} Qb4 {[%emt 0:00:20] [#]} 44. Rxa8 $18 {[%emt 0:00:26]} (44. Rxf8+ $142 $1 {[%mdl 512]} Nxf8 45. Qe7 Kh7 46. Qxf8 Bxe4 47. Qg8+ Kg6 48. f8=Q Bxg2+ 49. Kxg2 Qd2+ 50. Nf2 Qg5+ 51. Kf3) 44... Qe1+ {[%emt 0:00:37]} 45. Kh2 {[%emt 0:00:11]} Qd2 {[%emt 0:00:34]} 46. Qf5 {[%emt 0:00:57]} Qf4+ {[%emt 0:00:38]} 47. Qxf4 {[%emt 0:00:11]} 1-0

[Event "25th Abu Dhabi Open 2018"]
[Site "Abu Dhabi"]
[Date "2018.08.13"]
[Round "7"]
[White "Laabi Chian, Majid"]
[Black "Sameir, Ramez"]
[Result "1/2-1/2"]
[ECO "D00"]
[WhiteElo "2013"]
[BlackElo "2000"]
[Annotator "NA RC"]
[PlyCount "75"]
[EventDate "2018.08.05"]
[EventType "swiss"]
[EventCountry "UAE"]
[SourceTitle "playchess.com"]
[Source "ChessBase"]
[SourceQuality "1"]
[TimeControl "5400+30"]

1. d4 {[%emt 0:00:00]} d5 {[%emt 0:00:00]} 2. Bf4 {[%emt 0:00:00]} Nf6 {[%emt 0:00:00]} 3. e3 {[%emt 0:00:08]} c5 {[%emt 0:01:00]} 4. c3 {[%emt 0:01:51]} Nc6 {[%emt 0:00:43]} 5. Bd3 {[%emt 0:03:22] D00: 1 d4 d5: Unusual lines} (5. Nd2 Bf5 6. Qb3 Qc8 7. Ngf3 c4 8. Qd1 b5 9. Be2 h6 10. Ne5 e6 11. O-O Nxe5 12. Bxe5 Be7 {½-½ (37) Nisipeanu,L (2682)-Ragger,M (2666) Graz 2018}) 5... Qb6 {[%emt 0:07:08]} 6. Qc1 {[%emt 0:07:08]} Nh5 {[%emt 0:14:02]} 7. Bg3 {[%emt 0:14:08]} Nxg3 {[%emt 0:09:25]} 8. hxg3 {[%emt 0:00:08]} e5 {[%emt 0:03:07]} 9. dxc5 $146 {[%emt 0:07:28]} ({Predecessor:} 9. dxe5 Nxe5 10. Bc2 Bg4 11. Nd2 Qa6 12. Ndf3 Bd6 {½-½ (51) Sharafiev,A (2319)-Seliverstov,V (2239) Penza 2006}) 9... Bxc5 {[%emt 0:02:09]} 10. b4 {[%emt 0:00:15]} Be7 {[%emt 0:07:30]} 11. Nd2 {[%emt 0:08:09]} Be6 {[%emt 0:22:11]} 12. a3 {[%emt 0:02:22]} Rc8 {[%emt 0:00:40]} 13. Qd1 {[%emt 0:02:32]} e4 {[%emt 0:02:48]} 14. Be2 {[%emt 0:07:20]} Bf6 {[%emt 0:02:43]} 15. Rc1 {[%emt 0:00:14]} Ne5 {[%emt 0:00:40]} 16. c4 {[%emt 0:05:00]} dxc4 {[%emt 0:07:40]} 17. Nxe4 {[%emt 0:00:30]} Be7 {[%emt 0:00:23]} 18. Nf3 {[%emt 0:00:59]} Rd8 {[%emt 0:03:30]} 19. Nd4 {[%emt 0:01:31]} a5 {[%emt 0:09:49]} 20. Qa4+ {[%emt 0:02:15]} Bd7 {[%emt 0:00:05]} 21. b5 {[%emt 0:00:08]} Nd3+ {[%emt 0:00:35]} 22. Bxd3 {[%emt 0:00:33]} cxd3 {[%emt 0:00:01]} 23. O-O {[%emt 0:04:01]} O-O {[%emt 0:00:32]} 24. Qb3 {[%emt 0:02:11]} Qg6 {[%emt 0:00:19]} 25. Nc5 {[%emt 0:13:10]} d2 {[%emt 0:01:14]} 26. Rc3 {[%emt 0:00:52] [#]} (26. Rc4 $1 $15) 26... Bg4 $1 {[%emt 0:00:48]} 27. f3 {[%emt 0:00:26] [#]} Bxf3 {[%emt 0:00:28]} (27... a4 $1 $17 {[%cal Ra4b3][%mdl 512]} 28. Qxa4 {[#]} Bxf3 $1 {[%mdl 512]} 29. Nxf3 Bxc5 30. Nxd2 Bb6) 28. Rxf3 {[%emt 0:03:49]} Bxc5 $2 {[%emt 0:03:47]} (28... Rc8 $1 $11 29. Na4 Bxa3) 29. Rxc5 {[%emt 0:00:16]} Rc8 {[%emt 0:00:24]} 30. Rff5 $2 {[%emt 0:07:17]} ({Weiss kommt nicht vorbei an} 30. Rxc8 $18 Rxc8 31. Rf1) 30... Qxg3 $2 {[%emt 0:00:22] [#]} (30... Rxc5 $17 31. Rxc5 Qxg3) 31. Nf3 $2 {[%emt 0:00:06]} (31. Qxf7+ $1 {[%mdl 512] setzt Matt} Rxf7 32. Rxc8+ Rf8 33. Rfxf8#) 31... Rxc5 {[%emt 0:00:25]} 32. Rxc5 {[%emt 0:00:08]} Qe1+ $1 {[%emt 0:00:11]} 33. Nxe1 {[%emt 0:00:32]} dxe1=Q+ {[%emt 0:00:05]} 34. Kh2 {[%emt 0:00:31]} Qh4+ {[%emt 0:00:22]} (34... g6 $17 35. Rc7 Qh4+ 36. Kg1 Qe1+ 37. Kh2 b6) 35. Kg1 {[%emt 0:00:03]} Qe1+ {[%emt 0:00:02]} ({Better is} 35... h6 $17 36. Qc3 a4) 36. Kh2 {[%emt 0:00:15]} Qh4+ $11 {[%emt 0:02:10]} 37. Kg1 {[%emt 0:00:02]} Qe1+ {[%emt 0:00:31]} 38. Kh2 {[%emt 0:00:03]} 1/2-1/2

[Event "25th Abu Dhabi Open 2018"]
[Site "Abu Dhabi"]
[Date "2018.08.13"]
[Round "7"]
[White "Mahitosh, Dey"]
[Black "Saif, Malek"]
[Result "1-0"]
[ECO "C45"]
[WhiteElo "1887"]
[BlackElo "2024"]
[Annotator "NA"]
[PlyCount "87"]
[EventDate "2018.08.05"]
[EventType "swiss"]
[EventCountry "UAE"]
[SourceTitle "playchess.com"]
[Source "ChessBase"]
[SourceQuality "1"]
[TimeControl "5400+30"]

1. e4 {[%emt 0:00:00]} e5 {[%emt 0:00:11]} 2. Nf3 {[%emt 0:00:00]} Nc6 {[%emt 0:00:04]} 3. d4 {[%emt 0:00:01]} exd4 {[%emt 0:00:06]} 4. Nxd4 {[%emt 0:00:06]} Bc5 {[%emt 0:00:26]} 5. Nb3 {[%emt 0:00:09]} Bb6 {[%emt 0:00:03]} 6. Nc3 {[%emt 0:00:04]} d6 {[%emt 0:03:27]} 7. Qe2 {[%emt 0:00:07]} Be6 {[%emt 0:01:24]} 8. Be3 {[%emt 0:00:13]} Nf6 {[%emt 0:23:58]} 9. O-O-O {[%emt 0:00:51]} Qe7 {[%emt 0:02:10]} 10. f3 {[%emt 0:00:14]} O-O-O {[%emt 0:14:59]} 11. Bxb6 {[%emt 0:00:19]} axb6 {[%emt 0:00:04]} 12. Nd4 {[%emt 0:00:05]} Bd7 {[%emt 0:24:09]} 13. Qf2 {[%emt 0:02:04]} Rhe8 {[%emt 0:03:15]} 14. Bb5 {[%emt 0:00:27]} Nxd4 {[%emt 0:04:32]} 15. Bxd7+ {[%emt 0:01:26]} Rxd7 {[%emt 0:00:30]} 16. Rxd4 {[%emt 0:00:12]} Qe5 {[%emt 0:04:44]} 17. Kb1 {[%emt 0:03:08]} Qc5 {[%emt 0:05:58]} 18. Rhd1 {[%emt 0:00:42]} b5 {[%emt 0:05:35]} 19. Qf1 {[%emt 0:00:57]} c6 {[%emt 0:00:31]} 20. b4 {[%emt 0:01:51]} Qe5 {[%emt 0:00:44]} 21. f4 {[%emt 0:00:04]} Qe7 {[%emt 0:00:04]} 22. a4 {[%emt 0:00:27]} bxa4 {[%emt 0:00:51]} 23. Nxa4 {[%emt 0:01:08]} Kc7 {[%emt 0:01:43]} 24. Nc3 {[%emt 0:01:13]} Ra8 {[%emt 0:00:53]} 25. Qc4 {[%emt 0:00:49]} Qe6 {[%emt 0:01:33]} 26. Nb5+ {[%emt 0:00:27]} Kb6 {[%emt 0:00:14]} 27. Nxd6 {[%emt 0:00:48]} Qxc4 {[%emt 0:00:50]} 28. Nxc4+ {[%emt 0:00:06]} Kb5 {[%emt 0:00:02]} 29. Rxd7 {[%emt 0:00:34]} Nxd7 {[%emt 0:00:10]} 30. Rxd7 {[%emt 0:00:02]} Kxc4 {[%emt 0:00:06]} 31. Rxf7 {[%emt 0:00:05]} Kc3 {[%emt 0:01:25]} 32. Rxg7 {[%emt 0:00:07]} Rf8 {[%emt 0:00:44]} 33. f5 {[%emt 0:00:13]} Re8 {[%emt 0:00:08]} 34. Rxh7 {[%emt 0:00:18]} Rxe4 {[%emt 0:00:05]} 35. Rh3+ {[%emt 0:00:03]} Kxb4 {[%emt 0:00:29]} 36. Rf3 {[%emt 0:00:04]} Re8 {[%emt 0:00:09]} 37. f6 {[%emt 0:00:06]} Kc5 {[%emt 0:00:05]} 38. g4 {[%emt 0:00:04]} Kd5 {[%emt 0:00:09]} 39. f7 {[%emt 0:00:04]} Rf8 {[%emt 0:00:07]} 40. g5 {[%emt 0:00:03]} Ke6 {[%emt 0:00:16]} 41. g6 {[%emt 0:00:02]} Ke7 {[%emt 0:00:11]} 42. h4 {[%emt 0:00:03]} c5 {[%emt 0:00:17]} 43. h5 {[%emt 0:00:04]} b5 {[%emt 0:00:02]} 44. h6 {[%emt 0:00:02]} 1-0

[Event "25th Abu Dhabi Open 2018"]
[Site "Abu Dhabi"]
[Date "2018.08.13"]
[Round "7"]
[White "Aditya, Varun Gampa"]
[Black "Divinagracia, Alvin"]
[Result "1-0"]
[ECO "B12"]
[WhiteElo "1874"]
[BlackElo "2024"]
[Annotator "NA"]
[PlyCount "80"]
[EventDate "2018.08.05"]
[EventType "swiss"]
[EventCountry "UAE"]
[SourceTitle "playchess.com"]
[Source "ChessBase"]
[SourceQuality "1"]
[TimeControl "5400+30"]

1. e4 c6 2. d4 d5 3. e5 Bf5 4. h4 e6 5. g4 Ne7 6. gxf5 Nxf5 7. Nf3 c5 8. Bb5+ Nc6 9. Bxc6+ bxc6 10. c3 Qb6 11. Qb3 Qc7 12. Be3 Rb8 13. Qc2 Be7 14. Nbd2 h6 15. Nf1 Qb6 16. b3 cxd4 17. cxd4 Kd7 18. Ng3 Bb4+ 19. Kf1 Ne7 20. Kg2 Qa6 21. a3 Ba5 22. b4 Bb6 23. Nd2 g6 24. Nb3 Qb5 25. Rac1 Ke8 26. Qd2 Qa4 27. Qc3 Kf8 28. h5 g5 29. Nc5 Bxc5 30. Qxc5 Qxa3 31. Ra1 Qxb4 32. Rhb1 Qxb1 33. Rxb1 Rxb1 34. Qxa7 Rg8 35. Qc7 Ke8 36. Bd2 Rb5 37. Ba5 Rxa5 38. Qxa5 Kd7 39. Qa7+ Kd8 40. Ne2 Rf8 1-0

[Event "25th Abu Dhabi Open 2018"]
[Site "Abu Dhabi"]
[Date "2018.08.13"]
[Round "7"]
[White "Ashraf, Artin"]
[Black "Gandhi, Anish"]
[Result "0-1"]
[ECO "A50"]
[WhiteElo "1867"]
[BlackElo "2016"]
[Annotator "NA"]
[PlyCount "72"]
[EventDate "2018.08.05"]
[EventType "swiss"]
[EventCountry "UAE"]
[SourceTitle "playchess.com"]
[Source "ChessBase"]
[SourceQuality "1"]
[TimeControl "5400+30"]

1. d4 g6 2. c4 Nf6 3. f3 c5 4. d5 d6 5. e4 Bg7 6. Ne2 O-O 7. Be3 Nbd7 8. Qd2 Ne5 9. Nec3 e6 10. a4 exd5 11. cxd5 Nh5 12. Be2 f5 13. f4 Ng4 14. Bxg4 Qh4+ 15. Qf2 Qxg4 16. h3 Qg3 17. O-O fxe4 18. Nxe4 Qxf2+ 19. Bxf2 Nxf4 20. Nbc3 Be5 21. Nb5 Nxd5 22. Nbxd6 b6 23. a5 Ba6 24. Rfd1 Nf4 25. Ra3 Bxb2 26. Rb3 Bd4 27. axb6 Ne2+ 28. Kh2 Bxf2 29. Nxf2 Rxf2 30. b7 Rb8 31. Ne4 Rf5 32. g4 Rf7 33. Ra1 Bxb7 34. Rxa7 Re8 35. Rbxb7 Rxb7 36. Nf6+ Kf7 0-1

[Event "25th Abu Dhabi Open 2018"]
[Site "Abu Dhabi"]
[Date "2018.08.14"]
[Round "8"]
[White "Umbetov, Kazybek"]
[Black "Abucejo, Armel N"]
[Result "1-0"]
[ECO "A01"]
[WhiteElo "2055"]
[BlackElo "2020"]
[Annotator "NA"]
[PlyCount "125"]
[EventDate "2018.08.05"]
[EventType "swiss"]
[EventCountry "UAE"]
[SourceTitle "playchess.com"]
[Source "ChessBase"]
[SourceQuality "1"]
[TimeControl "5400+30"]

1. b3 d5 2. Bb2 Bg4 3. Nf3 Nd7 4. e3 Ngf6 5. Be2 e6 6. O-O Bd6 7. h3 Bh5 8. d3 Qe7 9. c4 c6 10. Nbd2 h6 11. cxd5 cxd5 12. e4 Bxf3 13. Nxf3 e5 14. exd5 Nxd5 15. d4 e4 16. Ne5 O-O 17. Bc4 N5b6 18. Ng6 Qg5 19. Nxf8 Rxf8 20. Qg4 Qd2 21. Bc1 Qxd4 22. Bxh6 Nxc4 23. bxc4 Qe5 24. Qxg7+ Qxg7 25. Bxg7 Kxg7 26. Rad1 Nb6 27. Rxd6 Nxc4 28. Rd4 b5 29. a4 a6 30. axb5 axb5 31. Rxe4 Rb8 32. Rb1 Nd6 33. Rd4 Rb6 34. h4 Kf6 35. h5 Ke5 36. Rdb4 f5 37. h6 Rb7 38. Rh4 Rh7 39. Kh2 Kf6 40. Kg3 Kg5 41. f3 f4+ 42. Rxf4 Rxh6 43. Rfb4 Re6 44. Rxb5+ Nxb5 45. Rxb5+ Kg6 46. Kg4 Ra6 47. f4 Rc6 48. Kh4 Rc1 49. g3 Ra1 50. Kg4 Ra6 51. Re5 Kf6 52. Rh5 Ra3 53. Rh6+ Kg7 54. Rb6 Ra5 55. f5 Ra3 56. Kf4 Ra4+ 57. Kg5 Ra3 58. g4 Ra7 59. Kh5 Kh7 60. g5 Rc7 61. g6+ Kg8 62. f6 Rc8 63. Kh6 1-0

[Event "25th Abu Dhabi Open 2018"]
[Site "Abu Dhabi"]
[Date "2018.08.14"]
[Round "8"]
[White "Ovezdurdiyeva, Jemal"]
[Black "Soham, Datar"]
[Result "1-0"]
[ECO "D11"]
[WhiteElo "2041"]
[BlackElo "2030"]
[Annotator "NA"]
[PlyCount "91"]
[EventDate "2018.08.05"]
[EventType "swiss"]
[EventCountry "UAE"]
[SourceTitle "playchess.com"]
[Source "ChessBase"]
[SourceQuality "1"]
[TimeControl "5400+30"]

1. d4 {[%emt 0:00:00]} d5 {[%emt 0:00:00]} 2. c4 {[%emt 0:00:00]} c6 {[%emt 0:00:00]} 3. Nf3 {[%emt 0:00:00]} Nf6 {[%emt 0:00:00]} 4. e3 {[%emt 0:00:00]} a6 {[%emt 0:00:00]} 5. Bd3 {[%emt 0:00:34]} b5 {[%emt 0:00:13]} 6. b3 {[%emt 0:00:52]} Bg4 {[%emt 0:00:52]} 7. Nbd2 {[%emt 0:00:34]} Nbd7 {[%emt 0:01:15]} 8. Qc2 {[%emt 0:00:41]} e6 {[%emt 0:01:07]} 9. O-O {[%emt 0:02:33]} c5 {[%emt 0:16:42]} 10. cxb5 {[%emt 0:09:01]} Rc8 {[%emt 0:00:32]} 11. Qd1 {[%emt 0:03:21]} axb5 {[%emt 0:01:39]} 12. Bxb5 {[%emt 0:00:21]} cxd4 {[%emt 0:04:15]} 13. exd4 {[%emt 0:01:17]} Bb4 {[%emt 0:00:07]} 14. Bb2 {[%emt 0:13:35]} O-O {[%emt 0:03:10]} 15. a3 {[%emt 0:05:52]} Bd6 {[%emt 0:10:30]} 16. h3 {[%emt 0:06:57]} Bh5 {[%emt 0:00:10]} 17. Bd3 {[%emt 0:05:19]} e5 {[%emt 0:05:04]} 18. dxe5 {[%emt 0:03:45]} Bxe5 {[%emt 0:00:57]} 19. Qb1 {[%emt 0:01:03]} Bxb2 {[%emt 0:02:13]} 20. Qxb2 {[%emt 0:00:06]} Ne4 {[%emt 0:03:50]} 21. Nxe4 {[%emt 0:07:43]} Bxf3 {[%emt 0:00:40]} 22. Ng3 {[%emt 0:02:10]} Be4 {[%emt 0:05:10]} 23. Nxe4 {[%emt 0:02:50]} dxe4 {[%emt 0:00:03]} 24. Bxe4 {[%emt 0:00:05]} Nc5 {[%emt 0:00:21]} 25. Bf5 {[%emt 0:00:30]} Rb8 {[%emt 0:00:09]} 26. b4 {[%emt 0:00:47]} g6 {[%emt 0:00:07]} 27. Qc2 {[%emt 0:05:55]} Nb7 {[%emt 0:01:34]} 28. Bg4 {[%emt 0:00:55]} Qh4 {[%emt 0:03:17]} 29. Rad1 {[%emt 0:01:33]} h5 {[%emt 0:00:36]} 30. Bf3 {[%emt 0:00:24]} Nd8 {[%emt 0:00:42]} 31. Bd5 {[%emt 0:00:15]} Kg7 {[%emt 0:00:43]} 32. Qc7 {[%emt 0:01:35]} Rb5 {[%emt 0:01:02]} 33. Rfe1 {[%emt 0:04:39]} Kg8 {[%emt 0:05:27]} 34. Qd6 {[%emt 0:01:52]} Kg7 {[%emt 0:01:26]} 35. a4 {[%emt 0:02:37]} Rxd5 {[%emt 0:03:16]} 36. Rxd5 {[%emt 0:00:35]} Ne6 {[%emt 0:00:27]} 37. Qe5+ {[%emt 0:00:47]} Kg8 {[%emt 0:00:19]} 38. Re4 {[%emt 0:01:03]} Qe7 {[%emt 0:00:20]} 39. Qd6 {[%emt 0:00:12]} Qf6 {[%emt 0:00:26]} 40. Qe5 {[%emt 0:01:52]} Qe7 {[%emt 0:00:02]} 41. b5 {[%emt 0:00:11]} Qa3 {[%emt 0:00:59]} 42. b6 {[%emt 0:01:13]} Qb3 {[%emt 0:01:08]} 43. Rb5 {[%emt 0:00:19]} Qd1+ {[%emt 0:00:11]} 44. Re1 {[%emt 0:00:26]} Qxa4 {[%emt 0:00:06]} 45. b7 {[%emt 0:00:04]} Qa7 {[%emt 0:00:34]} 46. b8=Q {[%emt 0:00:09]} 1-0

[Event "25th Abu Dhabi Open 2018"]
[Site "Abu Dhabi"]
[Date "2018.08.14"]
[Round "8"]
[White "Gandhi, Anish"]
[Black "Shanya, Mishra"]
[Result "1-0"]
[ECO "B48"]
[WhiteElo "2016"]
[BlackElo "1943"]
[Annotator "NA"]
[PlyCount "123"]
[EventDate "2018.08.05"]
[EventType "swiss"]
[EventCountry "UAE"]
[SourceTitle "playchess.com"]
[Source "ChessBase"]
[SourceQuality "1"]
[TimeControl "5400+30"]

1. e4 c5 2. Nf3 e6 3. d4 cxd4 4. Nxd4 Nc6 5. Nc3 Qc7 6. Be3 a6 7. Qf3 Bb4 8. Nxc6 bxc6 9. Bd4 e5 10. Qg3 f6 11. Qxg7 exd4 12. Qxh8 Kf8 13. a3 Qa5 14. axb4 Qxa1+ 15. Nd1 Qa4 16. c3 dxc3 17. bxc3 d5 18. Qxh7 Qc2 19. Be2 Qxe4 20. Qxe4 dxe4 21. O-O a5 22. bxa5 Rxa5 23. Ne3 Ne7 24. Rb1 Ba6 25. Rb8+ Bc8 26. Bg4 f5 27. Bxf5 Ra1+ 28. Nf1 Nxf5 29. Rxc8+ Ke7 30. Rb8 e3 31. Rb2 exf2+ 32. Rxf2 Ne3 33. h3 Kd6 34. Rf3 Nd5 35. h4 Rc1 36. Kh2 Nxc3 37. h5 Nd5 38. h6 Ra1 39. g4 Ra8 40. Kg3 Ne7 41. Ne3 c5 42. g5 Ke5 43. Ng4+ Kd4 44. Rf4+ Kd5 45. Ne3+ Ke6 46. Rf6+ Ke5 47. Ng4+ Kd4 48. Rd6+ Kc3 49. Re6 Nf5+ 50. Kf4 Nxh6 51. gxh6 c4 52. h7 Kd2 53. Rd6+ Ke2 54. Rh6 c3 55. h8=Q Rxh8 56. Rxh8 c2 57. Rh2+ Kd3 58. Ne5+ Kc3 59. Rh1 Kd2 60. Nf3+ Kc3 61. Ke3 Kb2 62. Ke4 1-0